bitfinex/quotes_ETHUSD_20240827
["timestamp","ask_amount","ask_price","bid_price","bid_amount"]
[1724765724503,3.81135,2623.8,2623.3,2.69779314]
[1724765725853,9.7407,2624.5,2623.3,2.69779314]
[1724765726018,3.8115,2623.7,2623.3,2.4518]
[1724765726220,3.81174,2623.5,2623.1,3.0]
[1724765726425,3.81148,2623.7,2623.1,0.56136103]
[1724765726926,3.81123,2623.9,2623.2,3.81205]
[1724765727264,2.397,2624.3,2623.4,3.81176]
[1724765727265,3.8108,2624.2,2623.4,3.81176]
[1724765727445,3.81078,2624.2,2623.5,2.2735]
[1724765727646,2.397,2624.3,2623.5,2.2735]
[1724765727647,3.81106,2624.0,2623.5,2.2735]
[1724765727958,3.81127,2623.8,2623.2,4.2055036]
[1724765728156,3.81104,2624.0,2623.3,0.07622984]
[1724765728361,3.81104,2624.0,2623.4,3.81176]
[1724765728857,3.81074,2624.2,2623.5,3.8117]
[1724765729056,2.6367,2624.3,2623.3,0.71397045]
[1724765729359,2.6367,2624.3,2623.7,3.81127]
[1724765729360,3.81062,2624.3,2623.7,3.81127]
[1724765729663,7.62125,2624.3,2623.7,3.81127]
[1724765730156,3.81129,2623.8,2623.2,0.3934536]
[1724765730329,3.81129,2623.8,2623.1,6.71986103]
[1724765730535,3.81157,2623.6,2623.1,6.71986103]
[1724765730916,7.62267,2623.8,2623.2,3.81213]
[1724765731121,3.81157,2623.6,2623.2,1.36574513]
[1724765731321,3.81129,2623.8,2623.2,5.17784513]
[1724765731555,3.81129,2623.8,2623.2,5.17779513]
[1724765731764,3.81164,2623.6,2623.1,2.3463]
[1724765731920,3.81164,2623.6,2623.0,3.1253103]
[1724765732121,3.81193,2623.4,2623.0,0.1253103]
[1724765732332,3.8119,2623.4,2623.0,0.1253103]
[1724765732837,7.62386,2623.4,2623.0,0.1253103]
[1724765733044,7.62456,2623.1,2623.0,0.1253103]
[1724765733255,11.43684,2623.1,2623.0,0.1253103]
[1724765733450,8.36251818,2623.1,2623.0,0.1253103]
[1724765733887,15.17479818,2623.1,2623.0,0.1253103]
[1724765734042,17.47059818,2623.1,2623.0,0.1253103]
[1724765736453,21.28287818,2623.1,2623.0,0.1253103]
[1724765736648,17.47059818,2623.1,2623.0,0.1253103]
[1724765737979,7.62456,2623.1,2623.0,0.1253103]
[1724765739842,11.43684,2623.1,2623.0,0.1253103]
[1724765740243,13.82054,2623.1,2623.0,0.1253103]
[1724765740457,16.82054,2623.1,2623.0,0.1253103]
[1724765740888,13.82054,2623.1,2623.0,0.1253103]
[1724765741067,15.09752492,2623.1,2623.0,0.1253103]
[1724765741476,12.71382492,2623.1,2623.0,0.1253103]
[1724765741677,7.62456,2623.1,2623.0,0.1253103]
[1724765741876,3.81117,2623.9,2623.0,0.1253103]
[1724765741877,3.81215,2623.2,2623.0,0.1253103]
[1724765742085,7.62456,2623.1,2623.0,0.1253103]
[1724765742253,3.81228,2623.1,2623.0,0.1253103]
[1724765742457,3.8122,2623.2,2623.0,0.1253103]
[1724765742900,7.62446,2623.2,2623.0,0.1253103]
[1724765743195,7.62456,2623.1,2623.0,0.1253103]
[1724765743397,8.387016,2623.1,2623.0,0.1253103]
[1724765743916,12.199296,2623.1,2623.0,0.1253103]
[1724765744080,8.387016,2623.1,2623.0,0.1253103]
[1724765745273,14.576596,2623.1,2623.0,0.1253103]
[1724765745710,17.576596,2623.1,2623.0,0.1253103]
[1724765746476,13.764316,2623.1,2623.0,0.1253103]
[1724765746729,3.81228,2623.1,2623.0,0.1253103]
[1724765746877,7.62456,2623.1,2623.0,0.1253103]
[1724765747081,3.81228,2623.1,2623.0,0.1253103]
[1724765747383,2.39,2623.6,2623.0,0.1253103]
[1724765747596,3.81228,2623.1,2623.0,0.1253103]
[1724765748118,3.81209,2623.3,2623.0,0.1253103]
[1724765748422,3.81214,2623.2,2623.0,0.1253103]
[1724765748732,3.81208,2623.3,2623.0,0.1253103]
[1724765748876,3.81228,2623.1,2623.0,0.1253103]
[1724765749077,11.43684,2623.1,2623.0,0.1253103]
[1724765749375,12.580524,2623.1,2623.0,0.1253103]
[1724765750779,15.580524,2623.1,2623.0,0.1253103]
[1724765751114,10.62456,2623.1,2623.0,0.1253103]
[1724765751333,3.81228,2623.1,2623.0,0.1253103]
[1724765751734,3.81209,2623.3,2623.0,0.1253103]
[1724765751896,3.81226,2623.2,2623.0,0.1253103]
[1724765752322,3.81209,2623.3,2623.0,0.1253103]
[1724765752653,3.81215,2623.2,2623.0,0.1253103]
[1724765753130,7.62456,2623.1,2623.0,0.1253103]
[1724765754218,11.43684,2623.1,2623.0,0.1253103]
[1724765754539,7.62456,2623.1,2623.0,0.1253103]
[1724765755609,3.81228,2623.1,2623.0,0.1253103]
[1724765755920,0.381143,2623.6,2623.0,0.1253103]
[1724765756260,7.62456,2623.1,2623.0,0.1253103]
[1724765758020,9.91466,2623.1,2623.0,0.1253103]
[1724765758357,20.53922,2623.1,2623.0,0.1253103]
[1724765758568,16.72694,2623.1,2623.0,0.1253103]
[1724765759135,20.53922,2623.1,2623.0,0.1253103]
[1724765759340,26.14159862,2623.1,2623.0,3e-07]
[1724765759541,22.40971862,2623.1,2623.0,3e-07]
[1724765759739,26.22199862,2623.1,2623.0,3e-07]
[1724765760070,22.95971862,2623.1,2623.0,3e-07]
[1724765760237,23.31787932,2623.1,2623.0,3e-07]
[1724765760436,18.59743862,2623.1,2623.0,3e-07]
[1724765760653,16.22693862,2623.1,2623.0,3e-07]
[1724765760852,7.62456,2623.1,2623.0,3e-07]
[1724765761038,3.81215,2623.2,2623.0,3e-07]
[1724765761376,3.81214,2623.2,2623.0,3e-07]
[1724765761669,3.81027,2624.5,2623.0,3e-07]
[1724765761670,3.81187,2623.4,2623.0,3e-07]
[1724765762469,2.3501,2623.9,2623.0,3e-07]
[1724765762470,6.16125,2623.9,2623.0,3e-07]
[1724765762638,3.81192,2623.4,2623.0,3e-07]
[1724765763340,3.81217,2623.2,2623.0,3e-07]
[1724765763540,3.8113,2623.8,2623.0,3e-07]
[1724765763740,3.81214,2623.2,2623.0,3e-07]
[1724765764262,3.81192,2623.4,2623.0,3e-07]
[1724765764624,7.62265,2623.8,2623.2,2.4488]
[1724765764886,2.4248,2624.5,2623.2,2.4488]
[1724765764887,3.81109,2624.0,2623.3,0.32873525]
[1724765765028,3.81109,2624.0,2623.4,3.81182]
[1724765765029,3.811,2624.0,2623.4,3.81182]
[1724765765223,3.811,2624.0,2623.5,2.86285553]
[1724765765629,7.84847894,2624.7,2623.8,3.81126]
[1724765765630,0.39847894,2624.7,2623.8,3.81126]
[1724765765828,0.35824365,2625.0,2624.4,3.81028]
[1724765765829,4.16782365,2625.0,2624.4,3.81028]
[1724765766063,0.35824365,2625.0,2624.6,2.4488]
[1724765766322,3.80991,2624.8,2624.6,2.4488]
[1724765766549,3.80995,2624.7,2624.6,2.4488]
[1724765767032,2.4248,2625.6,2624.6,2.4488]
[1724765767232,3.80995,2624.7,2624.0,6.17427]
[1724765767429,3.80995,2624.7,2624.1,3.81081]
[1724765767642,4.05136,2625.5,2624.0,2.3633]
[1724765767643,3.80943,2625.1,2624.0,2.3633]
[1724765767967,3.81029,2624.5,2624.0,2.3633]
[1724765768167,3.81063,2624.3,2624.0,2.3633]
[1724765768558,3.81049,2624.4,2623.7,2.4933]
[1724765768881,3.81179,2623.5,2623.1,2.4933]
[1724765769043,3.81078,2624.2,2623.1,2.4933]
[1724765769044,3.81204,2623.3,2623.1,2.4933]
[1724765769431,3.81174,2623.5,2622.8,2.4861]
[1724765769631,4.192914,2623.5,2622.8,2.4861]
[1724765769977,3.81201,2623.3,2622.8,2.4861]
[1724765770493,4.192934,2623.5,2622.8,2.4861]
[1724765770494,4.192934,2623.5,2622.8,6.29879]
[1724765770996,3.81147,2623.7,2623.1,3.81226]
[1724765771170,7.623,2623.7,2623.1,3.81226]
[1724765771374,3.81119,2623.9,2623.2,6.33756522]
[1724765771703,3.381049,2624.3,2623.3,3.8881433]
[1724765771704,3.81096,2624.1,2623.3,3.8881433]
[1724765771996,3.81123,2623.9,2623.3,0.07622956]
[1724765772196,3.81123,2623.9,2623.2,2.4493]
[1724765772370,0.4192009,2624.1,2623.2,5.4493]
[1724765772559,3.81211,2623.3,2623.0,3e-07]
[1724765772761,7.62357,2623.5,2623.0,3e-07]
[1724765773061,3.81191,2623.4,2623.0,3e-07]
[1724765773312,3.81199,2623.3,2623.0,3e-07]
[1724765773607,7.62456,2623.1,2623.0,3e-07]
[1724765774155,3.81228,2623.1,2623.0,3e-07]
[1724765774773,7.62456,2623.1,2623.0,3e-07]
[1724765775474,13.72234,2623.1,2623.0,3e-07]
[1724765775794,15.36797602,2623.1,2623.0,3e-07]
[1724765775981,18.36797602,2623.1,2623.0,3e-07]
[1724765776307,22.18025602,2623.1,2623.0,3e-07]
[1724765776528,18.36797602,2623.1,2623.0,3e-07]
[1724765777791,22.18025602,2623.1,2623.0,3e-07]
[1724765778141,18.36797602,2623.1,2623.0,3e-07]
[1724765780102,12.27019602,2623.1,2623.0,3e-07]
[1724765780335,16.08247602,2623.1,2623.0,3e-07]
[1724765780537,19.89475602,2623.1,2623.0,3e-07]
[1724765780697,22.21195602,2623.1,2623.0,3e-07]
[1724765781029,22.76195602,2623.1,2623.0,3e-07]
[1724765781705,26.57423602,2623.1,2623.0,3e-07]
[1724765781910,26.9727322,2623.1,2623.0,3e-07]
[1724765782628,23.1604522,2623.1,2623.0,3e-07]
[1724765782969,26.9727322,2623.1,2623.0,3e-07]
[1724765783120,11.7236122,2623.1,2621.2,3.815]
[1724765783471,11.7236122,2623.1,2620.9,2.393]
[1724765783472,7.62989,2621.3,2620.9,2.393]
[1724765783757,3.81491,2621.3,2620.9,2.393]
[1724765783961,3.81468,2621.5,2620.9,6.20834]
[1724765784265,12.25655,2622.0,2621.0,0.24693047]
[1724765784479,3.81512,2621.2,2620.9,2.393]
[1724765784620,3.81434,2621.7,2620.9,2.393]
[1724765784621,3.81482,2621.4,2620.9,2.393]
[1724765784823,3.81482,2621.4,2620.9,6.20838]
[1724765785060,3.81453,2621.6,2621.0,4.81763]
[1724765785262,3.81453,2621.6,2621.1,3.81518]
[1724765785465,3.81453,2621.6,2621.0,4.81763]
[1724765785828,3.81418,2621.8,2621.1,6.38169698]
[1724765786048,7.6279,2622.0,2621.5,2.4903]
[1724765786280,7.6279,2622.0,2621.5,3.50227]
[1724765786281,3.81395,2622.0,2621.5,3.50227]
[1724765786457,9.8651,2622.6,2621.5,3.50227]
[1724765786458,3.81338,2622.4,2621.6,2.56658335]
[1724765786658,0.8002499,2623.0,2622.0,2.4903]
[1724765786862,3.81351,2622.3,2622.0,2.4903]
[1724765787177,3.81412,2621.9,2621.6,2.3294]
[1724765787326,3.81388,2622.0,2621.6,2.3294]
[1724765787524,3.81365,2622.2,2621.6,6.14383]
[1724765787768,3.81365,2622.2,2621.6,2.3294]
[1724765788271,3.81339,2622.4,2621.6,3.29234]
[1724765788480,3.81339,2622.4,2621.8,3.81407]
[1724765788963,3.81339,2622.4,2621.8,3.81416]
[1724765789285,3.81286,2622.7,2621.9,2.2882]
[1724765789441,0.8002499,2623.0,2622.1,2.2882]
[1724765789442,3.81246,2623.0,2622.1,2.2882]
[1724765789766,3.81266,2622.9,2622.3,2.2882]
[1724765789982,3.8129,2622.7,2622.3,2.2882]
[1724765790189,7.62534,2622.9,2622.3,6.10163]
[1724765790347,3.81266,2622.9,2622.3,6.78807114]
[1724765790673,3.81266,2622.9,2622.3,10.60135114]
[1724765790967,3.81215,2623.2,2622.5,2.4397]
[1724765791185,3.81276,2622.8,2622.5,2.4397]
[1724765791328,3.813,2622.6,2622.5,2.4397]
[1724765791529,3.81288,2622.7,2622.5,2.4397]
[1724765791830,3.81265,2622.9,2622.5,2.4397]
[1724765792041,3.81291,2622.7,2622.2,2.4397]
[1724765792273,3.81291,2622.7,2622.2,3.502429]
[1724765792569,3.81309,2622.6,2622.2,3.502429]
[1724765792772,3.81316,2622.5,2622.2,2.4397]
[1724765793268,2.707504,2623.2,2622.2,6.25315]
[1724765793269,3.8127,2622.9,2622.2,6.25315]
[1724765793485,3.81228,2623.1,2622.4,3.81328]
[1724765793635,3.81207,2623.3,2622.5,6.24081407]
[1724765793832,3.81237,2623.1,2622.5,6.16461]
[1724765794035,0.381207,2623.3,2622.5,2.3515]
[1724765794277,3.81234,2623.1,2622.5,2.3515]
[1724765794474,3.81234,2623.1,2622.5,6.16452]
[1724765794652,3.81234,2623.1,2622.6,3.81293]
[1724765794835,3.81234,2623.1,2622.5,6.16452]
[1724765794836,7.62471,2623.1,2622.5,6.16452]
[1724765795182,3.81174,2623.5,2622.5,2.3515]
[1724765795335,3.81174,2623.5,2622.0,5.4361]
[1724765795336,3.81331,2622.4,2622.0,5.4361]
[1724765795675,3.81281,2622.8,2622.2,3.81358]
[1724765796174,11.26233,2623.1,2622.0,6.24988]
[1724765796175,3.81311,2622.6,2622.0,6.24988]
[1724765796332,3.81251,2623.0,2622.2,3.81355]
[1724765796538,3.81251,2623.0,2622.3,6.22412]
[1724765796867,3.81251,2623.0,2622.5,3.81315]
[1724765797070,3.81223,2623.2,2622.7,3.81285]
[1724765797293,3.81243,2623.0,2622.6,2.4108]
[1724765797494,9.7192,2623.8,2622.6,2.4108]
[1724765797495,3.81286,2622.7,2622.6,2.4108]
[1724765797783,3.81261,2622.9,2622.6,2.4108]
[1724765798133,3.81236,2623.1,2622.6,2.4108]
[1724765798470,7.62473,2623.1,2622.6,2.4108]
[1724765798678,3.81258,2622.9,2622.6,2.4108]
[1724765798974,3.81265,2622.9,2622.6,2.4108]
[1724765799175,3.81273,2622.8,2622.6,2.4108]
[1724765799378,3.81273,2622.8,2622.3,3.81331]
[1724765799379,3.81286,2622.7,2622.2,2.3178]
[1724765799589,3.8127,2622.9,2622.3,3.81333]
[1724765799735,6.24277,2623.4,2622.7,3.81284]
[1724765799736,3.81222,2623.2,2622.7,3.81284]
[1724765799932,3.81236,2623.1,2622.6,3.81286]
[1724765800274,3.81258,2622.9,2622.4,6.744113]
[1724765800448,3.81243,2623.0,2622.4,6.744113]
[1724765800449,7.62495,2623.0,2622.4,6.744113]
[1724765800769,3.81243,2623.0,2622.4,9.94419]
[1724765800972,4.193432,2623.2,2622.6,3.81293]
[1724765801176,3.81221,2623.2,2622.6,3.81289]
[1724765801484,3.81215,2623.2,2622.7,3.8890214]
[1724765801633,3.81191,2623.4,2622.8,3.81268]
[1724765802062,7.62387,2623.4,2622.8,3.81268]
[1724765802262,5.4309,2623.7,2622.8,3.81266]
[1724765802263,3.812,2623.3,2622.8,3.81266]
[1724765802461,5.480879,2623.6,2622.9,6.08635]
[1724765802689,3.81133,2623.8,2623.2,3.81213]
[1724765802987,3.81078,2624.2,2623.4,3.81181]
[1724765803138,7.621,2624.4,2623.7,3.81129]
[1724765803337,3.81075,2624.2,2623.8,0.608509]
[1724765803671,3.81101,2624.0,2623.6,2.2738]
[1724765803977,3.81128,2623.8,2623.6,2.2738]
[1724765804379,3.81102,2624.0,2623.6,2.2738]
[1724765804539,7.62208,2624.0,2623.6,2.2738]
[1724765804738,3.81078,2624.2,2623.6,3.27115859]
[1724765804980,0.381017,2624.5,2623.8,3.81125]
[1724765804981,3.81056,2624.3,2623.8,3.81125]
[1724765805142,3.8104,2624.4,2623.7,0.07622591]
[1724765805334,3.81071,2624.2,2623.7,0.07622591]
[1724765805541,3.811,2624.0,2623.6,2.2738]
[1724765806064,3.811,2624.0,2623.3,2.3628]
[1724765806065,3.81117,2623.9,2623.3,2.3628]
[1724765806398,3.8118,2623.5,2623.3,2.3628]
[1724765806583,4.19212,2624.0,2623.3,2.3628]
[1724765806584,3.81148,2623.7,2623.3,2.3628]
[1724765806741,7.62298,2623.7,2623.3,2.3628]
[1724765806936,0.419212,2623.9,2623.3,2.3628]
[1724765807178,0.419212,2623.9,2622.9,9.04902653]
[1724765807179,3.81183,2623.5,2622.9,3.81247]
[1724765807540,3.8118,2623.5,2622.9,3.81246]
[1724765807739,3.81179,2623.5,2622.9,3.81246]
[1724765808480,7.62363,2623.5,2622.9,3.81246]
[1724765808651,3.81201,2623.3,2622.8,2.2748]
[1724765808853,3.81242,2623.0,2622.5,6.29875]
[1724765809059,3.81242,2623.0,2622.5,10.11181]
[1724765809251,4.193331,2623.2,2622.6,3.813]
[1724765809782,4.193331,2623.2,2622.5,6.29875]
[1724765809946,4.193331,2623.2,2622.6,3.813]
[1724765810145,3.81193,2623.4,2622.8,3.81258]
[1724765810343,3.81142,2623.7,2622.7,3.81275]
[1724765810687,3.81176,2623.5,2622.7,7.3]
[1724765810873,3.81248,2623.0,2622.7,7.3]
[1724765811055,3.81248,2623.0,2622.6,2.3651]
[1724765811375,3.8123,2623.1,2622.6,2.3651]
[1724765811550,3.81242,2623.0,2622.6,2.3651]
[1724765812072,0.381219,2623.2,2622.6,2.3651]
[1724765812270,0.381219,2623.2,2622.3,16.34988653]
[1724765812271,3.81272,2622.8,2622.3,9.6588]
[1724765812473,3.81217,2623.2,2622.3,9.6588]
[1724765812644,3.81294,2622.7,2622.3,9.6588]
[1724765812840,3.81265,2622.9,2622.3,13.47221]
[1724765813040,7.62531,2622.9,2622.3,13.47216]
[1724765813305,7.62531,2622.9,2622.3,9.6588]
[1724765813306,3.81302,2622.6,2622.3,9.6588]
[1724765813450,3.81298,2622.7,2622.3,9.6588]
[1724765814084,3.81279,2622.8,2622.3,9.6588]
[1724765814642,3.81279,2622.8,2622.3,13.47221]
[1724765815075,3.8126,2622.9,2622.4,3.81328]
[1724765815589,3.81281,2622.8,2622.3,9.6588]
[1724765815792,3.81286,2622.7,2622.3,9.6588]
[1724765816184,3.81263,2622.9,2622.3,9.6588]
[1724765816378,6.22908,2623.1,2621.9,2.2629]
[1724765816550,3.8126,2622.9,2621.9,2.2629]
[1724765816746,3.81388,2622.0,2621.8,7.3]
[1724765816948,3.81417,2621.8,2621.6,2.4737]
[1724765817460,3.81413,2621.9,2621.6,2.4737]
[1724765817680,3.81382,2622.1,2621.6,2.4737]
[1724765817681,7.62767,2622.1,2621.6,2.4737]
[1724765818047,3.81352,2622.3,2621.7,3.81422]
[1724765818303,3.81352,2622.3,2621.6,6.28805]
[1724765818304,7.62709,2622.3,2621.6,6.28805]
[1724765818464,3.81374,2622.1,2621.6,6.28805]
[1724765818660,3.81424,2621.8,2621.6,2.4737]
[1724765819043,0.762726,2622.1,2621.6,2.4737]
[1724765819044,3.81415,2621.9,2621.6,2.4737]
[1724765819369,3.0,2622.7,2621.7,0.07628692]
[1724765819552,3.81353,2622.3,2621.7,11.11421]
[1724765819746,1.31856286,2622.6,2621.7,7.3]
[1724765819951,3.81367,2622.2,2621.7,7.3]
[1724765820193,3.0,2622.7,2621.8,3.81409]
[1724765820487,3.0,2622.7,2621.7,1.21706228]
[1724765820488,7.62742,2622.2,2621.7,1.21706228]
[1724765820689,3.81339,2622.4,2621.7,3.81429]
[1724765820889,9.9388,2623.1,2622.2,2.4325]
[1724765820890,3.81327,2622.5,2622.2,2.4325]
[1724765821395,3.81295,2622.7,2622.2,2.4325]
[1724765821554,4.84614207,2623.0,2622.2,2.4325]
[1724765821862,3.81296,2622.7,2622.2,2.4325]
[1724765822065,3.81273,2622.8,2622.3,3.81343]
[1724765822263,3.81287,2622.7,2622.3,0.54131913]
[1724765822981,3.81287,2622.7,2622.2,2.50876674]
[1724765822982,3.81311,2622.6,2622.2,2.4325]
[1724765823186,3.81287,2622.7,2622.2,2.4325]
[1724765823560,3.81288,2622.7,2622.2,6.24606]
[1724765823866,3.81288,2622.7,2622.2,2.4325]
[1724765824083,3.81254,2623.0,2622.4,2.397]
[1724765824386,2.2908,2624.1,2622.7,2.397]
[1724765824705,3.81271,2622.8,2622.7,2.397]
[1724765824868,3.81294,2622.7,2622.3,2.397]
[1724765825056,3.81244,2623.0,2622.5,3.81314]
[1724765825258,3.81088,2624.1,2622.3,6.21037]
[1724765825259,3.81215,2623.2,2622.7,6.20978]
[1724765825586,3.81128,2623.8,2622.8,3.88885961]
[1724765825755,3.81128,2623.8,2623.0,3.81232]
[1724765825756,3.81178,2623.5,2623.0,3.81232]
[1724765826274,0.97408,2623.8,2622.7,2.397]
[1724765826275,3.81143,2623.7,2622.7,2.397]
[1724765826628,3.81229,2623.1,2622.7,2.47324434]
[1724765826839,7.62469,2623.1,2622.7,2.397]
[1724765827133,3.81229,2623.1,2622.7,2.397]
[1724765827718,7.62467,2623.1,2622.7,2.397]
[1724765827911,3.81214,2623.2,2622.7,6.20976]
[1724765828336,3.81214,2623.2,2622.7,10.02254]
[1724765828695,3.81199,2623.3,2622.8,3.81259]
[1724765829390,3.8118,2623.5,2622.9,3.81255]
[1724765829591,3.8119,2623.4,2622.9,3.81255]
[1724765830130,0.38118,2623.5,2622.7,6.20979]
[1724765830346,3.81196,2623.4,2622.7,6.20977]
[1724765830533,8.005136,2623.4,2622.8,3.88885609]
[1724765830838,4.193156,2623.4,2622.7,6.20977]
[1724765831008,3.81222,2623.2,2622.7,6.20977]
[1724765831205,7.62449,2623.2,2622.7,6.20977]
[1724765831408,3.81222,2623.2,2622.7,10.02254]
[1724765831636,4.193126,2623.4,2622.8,3.81269]
[1724765831932,3.81163,2623.6,2622.9,3.81257]
[1724765832133,3.81163,2623.6,2622.9,3.81249]
[1724765832340,3.81163,2623.6,2623.0,3.8123]
[1724765832510,3.81211,2623.3,2622.8,3.81271]
[1724765832718,3.81247,2623.0,2622.4,2.3597]
[1724765833011,3.81258,2622.9,2622.4,2.3597]
[1724765833226,3.81258,2622.9,2622.4,6.17298]
[1724765833443,5.912008,2623.7,2622.6,3.81298]
[1724765833746,3.81231,2623.1,2622.6,3.81298]
[1724765834121,3.81231,2623.1,2622.6,7.62591]
[1724765834526,7.62468,2623.1,2622.6,3.81293]
[1724765834716,3.81231,2623.1,2622.6,3.81293]
[1724765834941,3.81209,2623.3,2622.4,7.901546]
[1724765835141,0.381209,2623.2,2622.4,7.901546]
[1724765835370,0.381209,2623.2,2622.5,0.07625244]
[1724765835523,3.81235,2623.1,2622.6,3.813]
[1724765835863,3.81296,2622.7,2622.4,2.3597]
[1724765836425,3.8126,2622.9,2622.4,6.17299]
[1724765836639,3.81272,2622.8,2622.4,2.3597]
[1724765837127,3.8126,2622.9,2622.4,2.3597]
[1724765837324,3.81208,2623.3,2622.6,3.81298]
[1724765837550,3.81239,2623.1,2622.4,7.901573]
[1724765837863,3.81297,2622.7,2622.4,2.3597]
[1724765838159,3.81297,2622.7,2622.2,7.3]
[1724765838360,3.81297,2622.7,2622.2,11.11356]
[1724765838664,3.81308,2622.6,2622.1,2.3555]
[1724765838865,0.762562,2622.7,2622.1,2.3555]
[1724765839199,0.762562,2622.7,2621.6,11.11436]
[1724765839200,3.81374,2622.1,2621.7,2.4454]
[1724765839363,3.81397,2622.0,2621.7,2.4454]
[1724765839923,3.8139,2622.0,2621.7,2.4454]
[1724765840132,3.81374,2622.1,2621.7,2.4454]
[1724765840332,3.81364,2622.2,2621.7,3.071393]
[1724765840534,3.8135,2622.3,2621.5,3.81448]
[1724765840737,3.81442,2621.7,2621.3,9.7972]
[1724765841358,3.81441,2621.7,2621.3,9.7972]
[1724765841702,7.62882,2621.7,2621.3,9.7972]
[1724765841975,2.3077,2622.0,2621.3,7.3]
[1724765842127,7.62971,2621.4,2621.0,2.3064]
[1724765842477,3.81492,2621.3,2620.8,11.1156]
[1724765842692,3.81505,2621.2,2620.8,7.3]
[1724765842830,3.81548,2620.9,2620.8,7.3]
[1724765843022,6.21718,2621.4,2620.4,6.3580403]
[1724765843023,3.81563,2620.8,2620.4,2.5419103]
[1724765843364,3.81606,2620.5,2620.4,0.1253103]
[1724765843554,3.8159,2620.7,2620.4,0.1253103]
[1724765843752,3.81602,2620.6,2620.4,0.1253103]
[1724765844779,7.63212,2620.5,2620.4,0.1253103]
[1724765844932,11.44818,2620.5,2620.4,0.1253103]
[1724765845278,7.63212,2620.5,2620.4,0.1253103]
[1724765845523,8.69339192,2620.5,2620.4,0.1253103]
[1724765845867,11.69339192,2620.5,2620.4,0.1253103]
[1724765846197,15.50945192,2620.5,2620.4,0.1253103]
[1724765846810,17.90315192,2620.5,2620.4,0.1253103]
[1724765846958,22.26921192,2620.5,2620.4,0.1253103]
[1724765847469,17.90315192,2620.5,2620.4,0.1253103]
[1724765848899,11.69339192,2620.5,2620.4,0.1253103]
[1724765851475,3.0,2620.8,2620.4,0.1253103]
[1724765851707,3.816,2620.6,2620.4,0.1253103]
[1724765852003,3.81571,2620.8,2620.4,0.1253103]
[1724765852374,3.81538,2621.0,2620.4,0.1253103]
[1724765852591,3.81471,2621.5,2620.5,2.45921345]
[1724765852812,3.81468,2621.5,2620.8,3.81553]
[1724765853017,3.81521,2621.1,2620.6,0.25845238]
[1724765853166,3.81521,2621.1,2620.5,9.6829]
[1724765853167,6.21015,2621.3,2620.5,7.3]
[1724765853360,3.81577,2620.7,2620.5,7.3]
[1724765853562,4.436095,2621.2,2620.4,0.1253103]
[1724765853563,0.621015,2621.2,2620.4,0.1253103]
[1724765853875,3.81606,2620.5,2620.4,0.1253103]
[1724765854063,8.09106292,2620.5,2620.4,0.1253103]
[1724765854864,4.27500292,2620.5,2620.4,0.1253103]
[1724765855062,3.81588,2620.7,2620.4,0.1253103]
[1724765855308,7.63178,2620.7,2620.4,0.1253103]
[1724765855477,3.81559,2620.9,2620.4,0.1253103]
[1724765855799,7.63212,2620.5,2620.4,0.1253103]
[1724765856018,3.81606,2620.5,2620.4,0.1253103]
[1724765856370,3.81583,2620.7,2620.4,0.1253103]
[1724765856808,7.63173,2620.7,2620.4,0.1253103]
[1724765857108,3.81606,2620.5,2620.4,0.1253103]
[1724765857563,4.57927,2620.5,2620.4,0.1253103]
[1724765857902,3.81604,2620.6,2620.4,0.1253103]
[1724765858131,0.621015,2621.2,2620.4,0.1253103]
[1724765858283,4.436125,2621.2,2620.5,3.81596]
[1724765858608,3.81396,2622.0,2621.3,2.3699]
[1724765858768,3.81431,2621.8,2621.3,2.3699]
[1724765858969,3.81448,2621.6,2621.3,2.3699]
[1724765859405,3.81426,2621.8,2621.3,2.3699]
[1724765859872,3.81348,2622.3,2621.3,2.3699]
[1724765860071,3.81443,2621.7,2621.3,2.3699]
[1724765860267,3.81443,2621.7,2621.1,3.81507]
[1724765860506,7.62883,2621.7,2621.1,3.81507]
[1724765860714,7.62883,2621.7,2620.9,6.18532]
[1724765860715,3.8149,2621.3,2620.9,2.3699]
[1724765860912,3.8149,2621.3,2620.8,3.0]
[1724765860913,3.81499,2621.3,2620.8,3.0]
[1724765861182,3.81552,2620.9,2620.5,2.3699]
[1724765861389,3.81527,2621.1,2620.4,0.1253103]
[1724765861691,3.81527,2621.1,2620.5,3.81594]
[1724765862108,3.81543,2621.0,2620.5,3.81594]
[1724765862416,3.81543,2621.0,2620.4,0.1253103]
[1724765862880,4.2349469,2621.1,2620.4,3.9415003]
[1724765863087,0.381499,2621.3,2620.4,0.1253103]
[1724765863393,3.81549,2620.9,2620.4,0.1253103]
[1724765864421,3.81526,2621.1,2620.6,3.81584]
[1724765864644,3.81463,2621.5,2620.6,0.39411503]
[1724765864803,3.81463,2621.5,2620.4,5.43816581]
[1724765864804,3.81475,2621.4,2620.8,7.63106]
[1724765864988,3.81449,2621.6,2621.0,3.81524]
[1724765865188,3.81412,2621.9,2621.2,3.81496]
[1724765865388,7.62822,2621.9,2621.3,3.81482]
[1724765867590,3.81455,2621.6,2621.1,2.4977]
[1724765867810,3.81432,2621.7,2621.1,6.3128]
[1724765868122,3.81432,2621.7,2621.1,2.4977]
[1724765868321,3.81409,2621.9,2621.2,3.81491]
[1724765868625,3.8142,2621.8,2621.3,3.81489]
[1724765869024,3.81383,2622.1,2621.5,3.81459]
[1724765869185,3.81399,2622.0,2621.5,4.20367882]
[1724765869383,3.81397,2622.0,2621.2,3.81496]
[1724765869610,3.81426,2621.8,2621.2,3.81496]
[1724765870191,3.81426,2621.8,2621.3,3.81481]
[1724765870712,4.195419,2621.9,2621.4,3.81474]
[1724765870894,3.8135,2622.3,2621.6,3.81444]